Cogmind - Beta 16 @@@ ROGUE MODE // 2025.11.18 @ 00:15:02 // Winter2019/RPGLIKE Player: Jaegerpls Result: Destroyed by P-70 Sage with Tesla Rifle Performance ------------- Evolutions (5) 2500 Regions Visited (11) 2200 Robots Destroyed (131) 655 Value Destroyed (5377) 5377 Prototype IDs (24) 480 Alien Tech Used (0) 0 Bonus (3311) 3311 TOTAL SCORE: 14523 Bonus ------- Triggered High Security 500 High Alert Combat Kills 2297 Follower Combat Kills 1244 Friendly Fire -730 Cogmind --------- Core Integrity 0/1650 Matter 300/300 Energy 203/550 System Corruption 15% Temperature Cool (0) Movement Treading (169) Location -5/Factory Parts ------- > --- POWER (3) -------- Improved Deuterium Engine Light Angular Momentum Engine Light Fission Core > --- PROPULSION (3) --- Advanced Heavy Siege Treads Treaded Armored-Heavy Exoskeleton > --- UTILITY (10) ----- Armored Scrap Engine Power Amplifier Advanced Cooling System Advanced Signal Interpreter Improved Terrain Scanner Advanced Targeting Computer Advanced Particle Accelerator Improved Transmission Jammer > --- WEAPON (2) ------- Powered Cannon > --- INVENTORY (3) ---- Micro Nuclear Core Light Angular Momentum Engine Peak State ------------ > --- POWER ------------ Micro Nuclear Core Light Fission Core Neutrino-Fission Core > --- PROPULSION ------- Advanced Heavy Siege Treads Treaded Armored-Heavy Exoskeleton > --- UTILITY ---------- Armored Scrap Engine Advanced Signal Interpreter Active Sensor Suite Advanced Targeting Computer Advanced Particle Accelerator Improved Transmission Jammer > --- WEAPON ----------- Powered Cannon > --- INVENTORY -------- Power Amplifier Advanced Cooling System [Rating: 124] Favorites ----------- Power Light Fission Core Engine Ion Engine Power Core Light Fission Core Propulsion Armored Wheel Treads Constructs Wheel Armored Wheel Utility Improved Terrain Scanner Device Improved Terrain Scanner Processor Advanced Targeting Computer Hackware Makeshift Hacking Suite Weapon Powered Cannon Energy Gun EM Pulse Gun Energy Cannon Powered Cannon Ballistic Cannon Battle Cannon Build | -11 -10 -10 -8 -6 -6 -6 -6 -5 -5 -5 -5 ------- Run | Yrd Mat Sub Rec Fac Low Low Zio Pro Fac Was Fac Slots Evolved 14 | 4 1 1 1 1 . 1 . 1 . . 4 Power 2 | . . 1 . . . . . . . . 1 Propulsion 2 | 1 . . . . . 1 . . . . . Utility 9 | 2 1 . 1 1 . . . 1 . . 3 Weapon 1 | 1 . . . . . . . . . . . Parts Attached 53 | 6 12 3 7 4 . . 1 2 2 3 13 Power 9 | 1 . . 2 2 . . . . . . 4 Engine 6 | 1 . . 2 . . . . . . . 3 Core 3 | . . . . 2 . . . . . . 1 Reactor . | . . . . . . . . . . . . Propulsion 5 | 2 2 . . . . . . . . 1 . Treads 1 | . . . . . . . . . . 1 . Leg . | . . . . . . . . . . . . Wheel 4 | 2 2 . . . . . . . . . . Hover . | . . . . . . . . . . . . Flight . | . . . . . . . . . . . . Utility 28 | 1 4 . 5 2 . . 1 2 2 2 9 Device 17 | 1 1 . 1 1 . . 1 1 1 2 8 Storage . | . . . . . . . . . . . . Processor 9 | . 3 . 3 1 . . . 1 . . 1 Hackware 2 | . . . 1 . . . . . 1 . . Protection . | . . . . . . . . . . . . Artifact . | . . . . . . . . . . . . Weapon 11 | 2 6 3 . . . . . . . . . Energy Gun 4 | 2 2 . . . . . . . . . . Energy Cannon 4 | . 3 1 . . . . . . . . . Ballistic Gun . | . . . . . . . . . . . . Ballistic Cannon 3 | . 1 2 . . . . . . . . . Launcher . | . . . . . . . . . . . . Special Weapon . | . . . . . . . . . . . . Impact Weapon . | . . . . . . . . . . . . Slashing Weapon . | . . . . . . . . . . . . Piercing Weapon . | . . . . . . . . . . . . Special Melee Weapon . | . . . . . . . . . . . . Unidentified Prototypes 8 | . 1 . 1 . . . 1 . 1 2 2 Parts Lost 1 | . . . . . . . . . . . 1 Power . | . . . . . . . . . . . . Propulsion . | . . . . . . . . . . . . Utility 1 | . . . . . . . . . . . 1 Weapon . | . . . . . . . . . . . . Highest Loss Streak 1 | . . . . . . . . . . . 1 To Critical Strikes . | . . . . . . . . . . . . Average Backups . | . . 1 . . 1 1 1 1 . . . Power . | . . . . . . . . . . . . Propulsion . | . . . . . . . . . . . . Utility . | . . . . . 1 1 1 1 . . . Weapon . | . . . . . . . . . . . . Tool/Special . | . . . . . . . . . . . . Unused Backups 5 | . 1 . 1 . 1 . . . . 2 . Power . | . . . . . . . . . . . . Propulsion . | . . . . . . . . . . . . Utility 4 | . . . 1 . 1 . . . . 2 . Weapon 1 | . 1 . . . . . . . . . . Tool/Special . | . . . . . . . . . . . . Average Slot Usage (%) 82 | . 90 85 75 80 84 80 84 83 85 80 78 Engine 7 | . 11 9 12 9 7 7 7 6 . . 3 Core 8 | . . . . 11 15 14 14 13 19 14 10 Treads 1 | . . . . . . . . . . 8 9 Wheel 14 | . 23 19 16 15 15 16 21 20 16 1 . Device 20 | . 16 19 16 17 23 21 20 21 20 20 27 Processor 15 | . 14 19 16 15 15 14 14 16 13 13 11 Hackware 1 | . . . 3 . . . . . 5 6 3 Energy Cannon 7 | . 14 6 8 7 7 7 7 6 6 6 5 Ballistic Cannon 2 | . 6 10 . . . . . . . . . Peak Build Rating 124 | 8 17 27 51 67 67 71 72 77 79 98 124 Average Rating 59 | 5 12 19 41 58 67 68 70 74 77 93 103 On Entrance 52 | . 8 16 27 51 67 67 71 71 72 79 98 Avg Prop Armor Cover (%) 3 | . . . . . . . . . 5 4 3 Naked Turns . | . . . . . . . . . . . . Heaviest Build 48 | 9 15 16 21 31 31 31 31 36 36 40 48 Greatest Support 111 | 20 24 24 24 24 24 39 39 39 39 105 111 Greatest Overweight (x) 11 | . . . . 1 1 1 . . 1 11 . Average Overweight (x) . | . . . . . 1 . . . . . . Largest Inventory Capacity 3 | 1 1 1 1 1 1 1 1 1 1 1 3 Average Capacity 1 | 1 1 1 1 1 1 1 1 1 1 1 2 Most Carried 3 | . 1 1 1 1 1 1 1 1 1 1 3 Average Carried . | . . 1 . . 1 1 1 1 . . 1 Final Capacity 3 | 1 1 1 1 1 1 1 1 1 1 1 3 Final Carried 2 | . 1 1 1 1 1 1 1 1 . 1 2 Scrap Engine Consumption 231 | . . . 37 56 13 7 . 10 9 28 71 Constructs Created 6 | . . . . 1 . 5 . . . . . Constructs Modified 41 | . . . . 5 1 1 . 2 7 5 20 Class Distribution -------------------- 44% | Skirmisher 33% | Mutant 17% | Hacker-Skirmisher 3% | Scavenger-Skirmisher Dominant Class ---------------- Mutant | -10/Materials Mutant | -10/Subcaves Mutant | -8/Recycling Skirmisher | -6/Factory Skirmisher | -6/Lower Caves Skirmisher | -6/Lower Caves Skirmisher | -6/Zion Skirmisher | -5/Proximity Caves Hacker-Skirmisher | -5/Factory Hacker-Skirmisher | -5/Waste Hacker-Skirmisher | -5/Factory Resources | -11 -10 -10 -8 -6 -6 -6 -6 -5 -5 -5 -5 ----------- Run | Yrd Mat Sub Rec Fac Low Low Zio Pro Fac Was Fac Matter Collected 1759 | 225 421 468 129 50 10 29 10 36 10 50 321 Remotely . | . . . . . . . . . . . . Salvage Created 5581 | 113 473 530 637 647 202 276 . 741 17 324 1621 Parts 317 | 7 41 25 31 36 9 15 . 21 2 11 119 Haulers Intercepted 4 | . 2 . . 1 . . . . . . 1 Recyclers Shooed 1 | . . . 1 . . . . . . . . Parts Field Recycled . | . . . . . . . . . . . . Retrieved Matter . | . . . . . . . . . . . . Parts Self-Destructed 41 | . . 6 . . 9 13 . 13 . . . Prevented 2 | . . 2 . . . . . . . . . Parts Restored . | . . . . . . . . . . . . Kills | -11 -10 -10 -8 -6 -6 -6 -6 -5 -5 -5 -5 ------- Run | Yrd Mat Sub Rec Fac Low Low Zio Pro Fac Was Fac Combat Hostiles Destroyed 106 | . 19 12 5 10 4 4 . 11 . . 41 Cannons 94 | . 19 10 4 8 3 3 . 11 . . 36 AOE 3 | . . 1 . 2 . . . . . . . Classes Destroyed 22 | 2 6 2 3 1 1 2 . 2 . . 3 Worker 1 | . . . . . . . . . . . 1 Builder 2 | . . . 1 . . . . . . . 1 Tunneler 4 | 3 . . . . . . . . 1 . . Hauler 4 | . 2 . . 1 . . . . . . 1 Recycler 4 | 1 . . 3 . . . . . . . . Minesweeper 1 | . . . . . 1 . . . . . . Operator 3 | . 2 . . 1 . . . . . . . Turret 2 | . . 2 . . . . . . . . . Watcher 4 | . 3 . . 1 . . . . . . . Swarmer 22 | . 9 2 . 3 2 . . 3 . . 3 Saboteur 1 | . . . . . . . . . . . 1 Grunt 26 | . 7 . . 3 . . . 3 . . 13 Brawler 2 | . . . . . . . . 1 . . 1 Duelist 2 | . . . . . . . . 1 . . 1 Sentry 12 | . . 1 2 2 1 . . 3 . . 3 Hunter 11 | . . . . . . 2 . . . . 9 Programmer 13 | . . . . 2 1 1 . . . . 9 Heavy 1 | . . . . . . . . . . . 1 Behemoth 1 | . . . . . . 1 . . . . . Subdweller 12 | . 3 9 . . . . . . . . . Scientist 2 | . . . 2 . . . . . . . . Scrapper 3 | . . . 3 . . . . . . . . Best Kill Streak 9 | 4 8 2 4 3 3 3 . 4 1 . 9 Combat Bots Only 9 | . 8 2 2 3 3 3 . 4 . . 9 Max Kills in Single Turn 2 | 1 2 1 1 2 1 1 . 1 1 . 1 Gunslinging . | . . . . . . . . . . . . Exploded 2 | . . 1 . 2 . . . . . . . Melee . | . . . . . . . . . . . . Uniques/NPCs Destroyed . | . . . . . . . . . . . . Combat | -11 -10 -10 -8 -6 -6 -6 -6 -5 -5 -5 -5 -------- Run | Yrd Mat Sub Rec Fac Low Low Zio Pro Fac Was Fac Hostile Shots Fired 641 | . 85 99 7 32 35 47 24 38 . . 274 Missed 220 | . 39 41 2 9 17 10 12 10 . . 80 Hits 421 | . 46 58 5 23 18 37 12 28 . . 194 Melee 2 | . . . . . . . . . . . 2 Projectile 419 | . 46 58 5 23 18 37 12 28 . . 192 Critical Strikes 8 | . . . 1 . 1 1 . . . . 5 Damage Taken 6884 | . 547 823 154 353 115 670 42 507 . . 3673 Core 5578 | . 449 658 129 287 87 565 33 401 . . 2969 Absorbed by Shields . | . . . . . . . . . . . . Redirected to Core 4559 | . 325 541 89 233 87 383 33 362 . . 2506 Regen/Repaired (Parts) 339 | . . . 5 16 6 12 . 65 . 200 35 Core Remaining (%) 68 | 100 . . 55 . . . . 51 . . . Volleys Fired 427 | 11 68 76 19 39 34 28 . 29 2 9 112 Largest 2 | 2 2 2 1 1 1 1 . 1 1 1 1 Hottest 120 | 80 112 120 120 120 120 120 . 120 120 120 120 Shots Fired 563 | 22 134 137 20 39 34 28 . 29 2 9 109 Gun 32 | 22 10 . . . . . . . . . . Cannon 531 | . 124 137 20 39 34 28 . 29 2 9 109 Launcher . | . . . . . . . . . . . . Special . | . . . . . . . . . . . . Kinetic 116 | . 54 62 . . . . . . . . . Thermal 348 | 11 56 11 20 39 34 28 . 29 2 9 109 Explosive . | . . . . . . . . . . . . Electromagnetic 99 | 11 24 64 . . . . . . . . . Robot Hit Streak 39 | 6 8 35 39 12 16 5 . 8 3 12 15 Robot Miss Streak 7 | 3 7 1 1 3 3 3 . 5 . . 3 Penetration Max . | . . . . . . . . . . . . Secondary Targets . | . . . . . . . . . . . . Shots Hit Robots 343 | 11 71 90 16 21 12 13 . 20 1 9 79 Core Hits 137 | 5 27 23 9 21 4 3 . 12 1 3 29 Critical Kills 11 | . . . 1 . 1 1 . 2 . 1 5 Critical Parts Destroyed . | . . . . . . . . . . . . Critical Strikes 21 | . 6 4 1 . 1 1 . 2 . 1 5 Burn 1 | . 1 . . . . . . . . . . Meltdown 11 | . . . 1 . 1 1 . 2 . 1 5 Blast 8 | . 4 4 . . . . . . . . . Corrupt 1 | . 1 . . . . . . . . . . Melee Attacks . | . . . . . . . . . . . . Impact . | . . . . . . . . . . . . Slashing . | . . . . . . . . . . . . Piercing . | . . . . . . . . . . . . Sneak Attacks . | . . . . . . . . . . . . Combat Hostiles . | . . . . . . . . . . . . Follow-up Attacks . | . . . . . . . . . . . . Damage Inflicted 20978 | 157 1318 1747 1193 2065 637 1517 . 1617 112 721 9894 Guns 224 | 157 67 . . . . . . . . . . Cannons 20523 | . 1251 1692 1193 1889 637 1517 . 1617 112 721 9894 Explosions 231 | . . 55 . 176 . . . . . . . Melee . | . . . . . . . . . . . . Ramming . | . . . . . . . . . . . . Kinetic 1299 | . 622 677 . . . . . . . . . Thermal 18149 | 66 448 55 1193 1889 637 1517 . 1617 112 721 9894 Explosive . | . . . . . . . . . . . . Electromagnetic 1530 | 91 248 1015 . 176 . . . . . . . Impact . | . . . . . . . . . . . . Slashing . | . . . . . . . . . . . . Piercing . | . . . . . . . . . . . . Highest Corruption 15 | . 5 5 5 . . 1 1 . . . 15 Average Corruption 4 | . 4 5 5 . . 1 1 . . . 4 Corruption Purged . | . . . . . . . . . . . . Corruption Blocked . | . . . . . . . . . . . . Effects 190 | . 29 68 36 . . 9 3 . . . 45 Message Errors 50 | . 11 15 14 . . 1 . . . . 9 Matter Fused 42 | . 5 14 6 . . 4 1 . . . 12 Heat Flow Errors 24 | . 2 9 4 . . 2 1 . . . 6 Energy Discharges 28 | . 6 9 5 . . . 1 . . . 7 Parts Fused 5 | . . 4 1 . . . . . . . . Data Loss (minor) 17 | . 1 9 3 . . 1 . . . . 3 Data Loss (major) 6 | . 2 2 1 . . . . . . . 1 Misfires 7 | . 1 3 1 . . . . . . . 2 Alerts 6 | . 1 3 1 . . 1 . . . . . Weapon Failures 5 | . . . . . . . . . . . 5 Overload Shots 129 | . . 3 11 16 4 21 . 11 2 2 59 Effects 16 | . . 1 2 . 1 1 . 1 . 1 9 Energy Bleed 5 | . . . 1 . . 1 . 1 . . 2 Heat Surge 9 | . . 1 1 . 1 . . . . . 6 Short Circuit 2 | . . . . . . . . . . 1 1 Overflow Damage 3548 | . 38 14 88 553 49 311 . 160 . 191 2144 Projectiles 3548 | . 38 14 88 553 49 311 . 160 . 191 2144 Explosions . | . . . . . . . . . . . . Melee . | . . . . . . . . . . . . Knockbacks 16 | . 8 8 . . . . . . . . . Impact . | . . . . . . . . . . . . Kinetic 16 | . 8 8 . . . . . . . . . Secondary . | . . . . . . . . . . . . Self-Inflicted Damage . | . . . . . . . . . . . . Shots . | . . . . . . . . . . . . Rammed . | . . . . . . . . . . . . Targets Rammed . | . . . . . . . . . . . . Kicked . | . . . . . . . . . . . . Crushed . | . . . . . . . . . . . . Highest Temperature 357 | . 247 241 212 160 287 357 160 66 60 111 261 Average Temperature 71 | . 34 106 89 61 96 86 96 53 59 63 69 Received Heat Transfer 1295 | . 132 258 73 138 18 358 . 39 . . 279 Effects 1 | . . . . . . 1 . . . . . Shutdowns 1 | . . . . . . 1 . . . . . Siege Activations 1 | . . . . . . . . . . 1 . Total Turns 1 | . . . . . . . . . . 1 . Longest Duration 1 | . . . . . . . . . . 1 . Martial Activations . | . . . . . . . . . . . . Shielding Activations . | . . . . . . . . . . . . Robots Disrupted 2 | . . . . 2 . . . . . . . Combat Hostiles 2 | . . . . 2 . . . . . . . Robots Corrupted 3 | . . 3 . . . . . . . . . Combat Hostiles 3 | . . 3 . . . . . . . . . Parts Fried 12 | . 1 11 . . . . . . . . . Impact Corruptions . | . . . . . . . . . . . . Robots Melted 11 | . . . 1 . 1 1 . 2 . 1 5 Combat Hostiles 11 | . . . 1 . 1 1 . 2 . 1 5 Parts Melted 17 | . 2 . 3 . 1 3 . 1 . . 7 Heat Transferred 1236 | 150 1036 50 . . . . . . . . . Parts Sabotaged 2 | . . . . . . . . . . . 2 Parts Stolen . | . . . . . . . . . . . . Parts Stripped . | . . . . . . . . . . . . Power Chain Reactions 1 | . . 1 . . . . . . . . . Alert | -11 -10 -10 -8 -6 -6 -6 -6 -5 -5 -5 -5 ------- Run | Yrd Mat Sub Rec Fac Low Low Zio Pro Fac Was Fac Maximum Alert Level 5 | . 1 . . . . . . . . . 5 Low Security (%) 73 | 100 81 . 100 100 . . . . 100 100 17 Level 1 2 | . 18 . . . . . . . . . . Level 2 . | . . . . . . . . . . . 1 Level 3 3 | . . . . . . . . . . . 13 Level 4 1 | . . . . . . . . . . . 3 Level 5 11 | . . . . . . . . . . . 40 High Security 6 | . . . . . . . . . . . 22 Max Security . | . . . . . . . . . . . . Peak Influence 3031 | 10 264 . 21 197 . . . . 25 . 3031 Initial 25 | . . . . . . . . . 25 . . Average 509 | 3 88 . . 49 . . . . 1 . 1680 Influence Increases 5867 | 20 544 565 93 339 115 90 . 320 12 . 3769 Destroy 0b10 Robot/C 2620 | . 320 100 40 200 80 80 . 220 . . 1580 Destroy 0b10 Robot/NC 185 | 20 35 . 20 15 10 . . 10 5 . 70 Destroy Leader 432 | . 60 . . 64 10 10 . . . . 288 Allied During Kill 1054 | . . . . . . . . . . . 1054 Successful Hack 84 | . 51 . 28 . . . . . 5 . . Disable Machine 195 | . 30 . . 45 . . . . . . 120 Destroy Structure 447 | . 3 . 5 15 . . . . 2 . 422 Partial Spotted 30 | . 15 . . . . . . . . . 15 Lose Combat Pursuer 720 | . 30 465 . . 15 . . 90 . . 120 Active Sensor Use 100 | . . . . . . . . . . . 100 Influence Decreases 2846 | 20 544 565 93 190 264 90 . 279 53 . 748 Entered New Map 72 | . . . . . 56 . . . 16 . . Time Decay 2281 | 20 361 565 93 190 208 90 . 279 37 . 438 Lost Part 10 | . . . . . . . . . . . 10 Lost Ally 300 | . . . . . . . . . . . 300 Purge Threat 183 | . 183 . . . . . . . . . . Squads Dispatched 51 | . 2 . . 4 . . . 1 2 . 42 Investigation 3 | . . . . . . . . . 1 . 2 Extermination 7 | . . . . 3 . . . . 1 . 3 Reinforcement 8 | . 2 . . 1 . . . . . . 5 Assault 29 | . . . . . . . . 1 . . 28 Garrison 4 | . . . . . . . . . . . 4 Intercept . | . . . . . . . . . . . . Searches Triggered . | . . . . . . . . . . . . Construction Impeded 1 | . . . . . . . . . . . 1 Haulers Reinforced 2 | . . . . . . . . . . . 2 Active Scanning Responses 1 | . . . . . . . . . . . 1 Cargo Convoy Interrupts . | . . . . . . . . . . . . Stealth | -11 -10 -10 -8 -6 -6 -6 -6 -5 -5 -5 -5 --------- Run | Yrd Mat Sub Rec Fac Low Low Zio Pro Fac Was Fac Distress Signals 7 | . . . . . . . . . . . 7 Communications Jammed 50 | . . . . . . . . . . . 50 Distress Signals 50 | . . . . . . . . . . . 50 Times Spotted 198 | . 29 41 4 11 5 4 4 12 . . 88 Peak Tracking Total 15 | . 6 6 4 3 3 3 4 8 . . 15 Tactical Retreats 16 | . 3 3 . . 1 . 1 3 . . 5 Traps | -11 -10 -10 -8 -6 -6 -6 -6 -5 -5 -5 -5 ------- Run | Yrd Mat Sub Rec Fac Low Low Zio Pro Fac Was Fac Traps Triggered 6 | . 1 . . . . . . . 1 . 4 Indirectly . | . . . . . . . . . . . . Trap Hack Attempts . | . . . . . . . . . . . . Triggered . | . . . . . . . . . . . . Disarmed 5 | . 5 . . . . . . . . . . Reprogrammed . | . . . . . . . . . . . . Reused . | . . . . . . . . . . . . Traps Extracted . | . . . . . . . . . . . . Installed . | . . . . . . . . . . . . Triggered . | . . . . . . . . . . . . Machines | -11 -10 -10 -8 -6 -6 -6 -6 -5 -5 -5 -5 ---------- Run | Yrd Mat Sub Rec Fac Low Low Zio Pro Fac Was Fac Machines Disabled 15 | . 2 2 . 3 . . . . . . 8 Max in Single Turn 3 | . 1 1 . 3 . . . . . . 1 Machines Repaired . | . . . . . . . . . . . . Machines Dismantled . | . . . . . . . . . . . . Machines Sabotaged . | . . . . . . . . . . . . Overloaded Fab Kills . | . . . . . . . . . . . . Hacking | -11 -10 -10 -8 -6 -6 -6 -6 -5 -5 -5 -5 --------- Run | Yrd Mat Sub Rec Fac Low Low Zio Pro Fac Was Fac Machines Accessed 35 | . 9 2 13 2 . . . . 4 . 5 Terminals 18 | . 7 . 6 2 . . . . 2 . 1 Fabricators 1 | . . . . . . . . . 1 . . Repair Stations . | . . . . . . . . . . . . Recycling Units 8 | . 2 . 5 . . . . . . . 1 Scanalyzers 2 | . . . . . . . . . 1 . 1 Garrison Access 2 | . . . . . . . . . . . 2 Total Hacks 139 | . 35 10 63 4 . . . . 21 . 6 Successful 94 | . 20 10 50 . . . . . 13 . 1 Failed 44 | . 14 . 13 4 . . . . 8 . 5 Catastrophic 8 | . 2 . 3 1 . . . . 1 . 1 Database Lockouts 1 | . 1 . . . . . . . . . . Manual 73 | . 20 . 32 4 . . . . 14 . 3 Terminals 79 | . 32 . 25 4 . . . . 16 . 2 Fabricators 2 | . . . . . . . . . 2 . . Repair Stations . | . . . . . . . . . . . . Recycling Units 16 | . 3 . 12 . . . . . . . 1 Scanalyzers 4 | . . . . . . . . . 3 . 1 Garrison Access 2 | . . . . . . . . . . . 2 Terminal Hacks 56 | . 11 10 32 . . . . . 3 . . Record 35 | . 3 8 24 . . . . . . . . Part Schematic 2 | . . . 2 . . . . . . . . Robot Analysis 7 | . 4 . 3 . . . . . . . . Prototype ID Bank 1 | . 1 . . . . . . . . . . Open Door 1 | . . 1 . . . . . . . . . Unreport Threat 4 | . 2 . 1 . . . . . 1 . . Disarm Traps 1 | . 1 . . . . . . . . . . Patrol Status 1 | . . . . . . . . . 1 . . Zone Layout 1 | . . . . . . . . . 1 . . Proto ID Catalog 1 | . . 1 . . . . . . . . . Release Object 2 | . . . 2 . . . . . . . . Fabricator Hacks 2 | . . . . . . . . . 2 . . Load Schematic 1 | . . . . . . . . . 1 . . Build 1 | . . . . . . . . . 1 . . Repair Station Hacks . | . . . . . . . . . . . . Recycling Unit Hacks 5 | . . . 5 . . . . . . . . Report Inventory 5 | . . . 5 . . . . . . . . Scanalyzer 4 | . . . . . . . . . 3 . 1 Retrieve Study 4 | . . . . . . . . . 3 . 1 Garrison Access Hacks . | . . . . . . . . . . . . Unauthorized Hacks 27 | . 9 . 13 . . . . . 5 . . Terminals 20 | . 8 . 7 . . . . . 5 . . Botnet 6 | . 2 . 2 . . . . . 2 . . Operators 1 | . . . . . . . . . 1 . . Skim 13 | . 6 . 5 . . . . . 2 . . Fabricators . | . . . . . . . . . . . . Repair Stations . | . . . . . . . . . . . . Recycling Units 7 | . 1 . 6 . . . . . . . . Reject 6 | . 1 . 5 . . . . . . . . Recyclers 1 | . . . 1 . . . . . . . . Scanalyzers . | . . . . . . . . . . . . Garrison Access . | . . . . . . . . . . . . Data Cores Recovered 1 | . . . . 1 . . . . . . . Used . | . . . . . . . . . . . . Hacking Detections 22 | . 7 . 6 2 . . . . 3 . 4 Full Trace Events 1 | . . . . . . . . . 1 . . Feedback Events . | . . . . . . . . . . . . Feedback Blocked . | . . . . . . . . . . . . Robot Schematics Acquired . | . . . . . . . . . . . . Robots Built . | . . . . . . . . . . . . Authchips . | . . . . . . . . . . . . Time . | . . . . . . . . . . . . Total Robot Build Rating . | . . . . . . . . . . . . Part Schematics Acquired 2 | . . . 2 . . . . . . . . Parts Built 2 | . . . . . . . . . 2 . . Authchips . | . . . . . . . . . . . . Time 36 | . . . . . . . . . 36 . . Total Part Build Rating 6 | . . . . . . . . . 6 . . Part Studies Acquired 3 | . . . . . . . . . 3 . . Parts Repaired . | . . . . . . . . . . . . Time . | . . . . . . . . . . . . Parts Recycled . | . . . . . . . . . . . . Recycled Matter . | . . . . . . . . . . . . Retrieved Matter . | . . . . . . . . . . . . Retrieved Components . | . . . . . . . . . . . . Parts Scanalyzed . | . . . . . . . . . . . . Part Schematics Acquired . | . . . . . . . . . . . . Parts Damaged . | . . . . . . . . . . . . Bothacking | -11 -10 -10 -8 -6 -6 -6 -6 -5 -5 -5 -5 ------------ Run | Yrd Mat Sub Rec Fac Low Low Zio Pro Fac Was Fac Used RIF Installer . | . . . . . . . . . . . . Robots Hacked . | . . . . . . . . . . . . Non-combat . | . . . . . . . . . . . . Combat . | . . . . . . . . . . . . Robot Hacks Applied . | . . . . . . . . . . . . Relay Couplers Released . | . . . . . . . . . . . . Fabnet Peak Effective % . | . . . . . . . . . . . . Robots Rewired . | . . . . . . . . . . . . Allies Hacked 1 | . . . . . . . . . . . 1 Hacks Repelled . | . . . . . . . . . . . . Allies | -11 -10 -10 -8 -6 -6 -6 -6 -5 -5 -5 -5 -------- Run | Yrd Mat Sub Rec Fac Low Low Zio Pro Fac Was Fac Total Allies 20 | . . . . . . . . . . 20 . Largest Group 20 | . . . . . . . . . . 20 20 Highest-Rated Group 791 | . . . . . . . . . . 791 791 Highest-Rated Ally 50 | . . . . . . . . . . 50 50 Total Orders . | . . . . . . . . . . . . Ally Attacks 216 | . . . . . . . . . . . 216 Total Damage 7088 | . . . . . . . . . . . 7088 Kills 52 | . . . . . . . . . . . 52 Allies Corrupted . | . . . . . . . . . . . . Allies Melted . | . . . . . . . . . . . . Intel | -11 -10 -10 -8 -6 -6 -6 -6 -5 -5 -5 -5 ------- Run | Yrd Mat Sub Rec Fac Low Low Zio Pro Fac Was Fac Active Infowar (turns) 16075 | 21 1219 2754 839 1731 2141 1615 318 1498 595 864 2480 A.S.S. 28 | . . . . . . . . . . . 28 Terrain 16043 | 21 1219 2754 839 1731 2141 1615 318 1498 595 864 2448 Decoding 724 | . . . . . . . . 724 . . . Jamming 969 | . . . . . . . . . . . 969 Robot Analysis Total 7 | . 4 . 3 . . . . . . . . Derelict Logs Recovered 5 | . . 1 . . 1 . 2 1 . . . Drone Launches . | . . . . . . . . . . . . Drone Recoveries . | . . . . . . . . . . . . Exploration | -11 -10 -10 -8 -6 -6 -6 -6 -5 -5 -5 -5 ------------- Run | Yrd Mat Sub Rec Fac Low Low Zio Pro Fac Was Fac Turns Passed 17196 | 85 1219 2754 1711 1829 2141 1615 318 1498 595 864 2567 Spaces Moved 9594 | 55 794 1445 1216 1064 1142 916 213 826 284 562 1077 Core 4 | 3 . . . . . . . . . 1 . Treads 1555 | . . . . . . . . . . 478 1077 Legs . | . . . . . . . . . . . . Wheels 8035 | 52 794 1445 1216 1064 1142 916 213 826 284 83 . Hover . | . . . . . . . . . . . . Flight . | . . . . . . . . . . . . Fastest Speed 50 | 50 80 90 90 90 105 95 95 95 95 95 125 Average Speed 103 | 78 86 90 90 99 105 101 95 95 98 135 149 Slowest Speed 600 | 80 90 90 90 105 105 105 95 95 105 600 169 Overloaded Moves . | . . . . . . . . . . . . Propulsion Burnouts . | . . . . . . . . . . . . Robots Hopped . | . . . . . . . . . . . . Potential Cave-ins 6 | . . . . . 6 . . . . . . Cave-ins Triggered . | . . . . . . . . . . . . Exploration Rate (%) 57 | 4 99 87 96 18 96 86 14 60 10 96 24 Regions Visited 11 Branch Regions 6 Pre-discovered Areas 4 | . 1 1 1 . 1 . . . . . . Known Exits Taken 6 | . . 1 . 1 1 1 1 1 . . . Unknown Exits Taken 3 | 1 1 . 1 . . . . . . . . Scrap Searched 22 | . . 14 . . 5 1 . 2 . . . Spaces Dug 53 | . . 5 1 12 17 7 . . 1 . 10 Terrain Destroyed 93 | . . 5 5 16 20 15 . 8 1 . 23 Melee . | . . . . . . . . . . . . Projectile 93 | . . 5 5 16 20 15 . 8 1 . 23 AOE . | . . . . . . . . . . . . Terrain Rammed . | . . . . . . . . . . . . Walls Destroyed . | . . . . . . . . . . . . Machines Disabled . | . . . . . . . . . . . . Actions | -11 -10 -10 -8 -6 -6 -6 -6 -5 -5 -5 -5 --------- Run | Yrd Mat Sub Rec Fac Low Low Zio Pro Fac Was Fac Total 16337 | 71 1195 2766 1817 1799 2058 1578 328 1516 598 661 1950 Wait 5934 | . 280 1210 560 669 870 624 112 632 308 44 625 Move 9584 | 54 793 1444 1215 1063 1141 915 212 825 284 561 1077 Hop . | . . . . . . . . . . . . Pick Up 18 | . 1 1 2 1 1 . . . 1 2 9 Fast Attach 48 | 6 10 3 6 5 . . 2 2 . 3 11 Attach 15 | . . . 1 1 . . . . 2 1 10 Detach 21 | . 3 . 4 1 . 2 . . . 4 7 Swap 9 | . 4 2 1 . . . . . . . 2 Drop 44 | . 8 5 3 4 1 2 2 2 1 4 12 Fire 427 | 11 68 76 19 39 34 28 . 29 2 9 112 Melee . | . . . . . . . . . . . . Ram . | . . . . . . . . . . . . Kick . | . . . . . . . . . . . . Crush . | . . . . . . . . . . . . Escape Stasis . | . . . . . . . . . . . . Rewire 8 | . . . . . . . . . . 7 1 Trap . | . . . . . . . . . . . . Miscellaneous 229 | . 28 25 6 16 11 7 . 26 . 26 84 Route ------- -11/Scrapyard -10/Materials (discovered 6 exits: *Mat x3 / *Min x2 / *Sub) -10/Subcaves (discovered 3 exits: *Mat x2 / *Rec) -8/Recycling -6/Factory (discovered 5 exits: Fac x3 / *Low x2) -6/Lower Caves -6/Lower Caves (discovered 2 exits: *Fac / *Zio) -6/Zion -5/Proximity Caves -5/Factory (discovered 3 exits: Upp / Ext x2) -5/Waste -5/Factory (discovered 2 exits: *Fac x2) History --------- Turn | Location | Event 1 | -11/Scrapyard | Upgraded with Propulsion slot (x1) 1 | -11/Scrapyard | Upgraded with Utility slot (x2) 1 | -11/Scrapyard | Upgraded with Weapon slot (x1) 12 | -11/Scrapyard | Discovered new exit (range 16) 86 | -11/Scrapyard | Entered Materials 300 | -10/Materials | Build established: Mutant 327 | -10/Materials | Discovered new exit (range 12) 433 | -10/Materials | Central database locked down 437 | -10/Materials | Discovered new exit (range 15) 464 | -10/Materials | Identified exit to Materials 487 | -10/Materials | Discovered new exit (range 16) 536 | -10/Materials | Discovered exit to Materials (range 13) 542 | -10/Materials | Identified exit to Mines 664 | -10/Materials | Reached level 2 709 | -10/Materials | Upgraded with Utility slot (x1) 718 | -10/Materials | Destroyed 8 combat bots 770 | -10/Materials | Discovered exit to Materials (range 8) 781 | -10/Materials | Discovered new exit (range 14) 986 | -10/Materials | Derelicts attacked the area 1096 | -10/Materials | Learned location of 2 exits from Subcaves 1139 | -10/Materials | Learned location of Subcaves (-10) 1305 | -10/Materials | Entered Subcaves 1305 | -10/Subcaves | Learned location of Zion (-6) 1306 | -10/Subcaves | Identified exit to Materials 1306 | -10/Subcaves | Identified exit to Recycling 1307 | -10/Subcaves | Reached level 3 1307 | -10/Subcaves | Upgraded with Power slot (x1) 1319 | -10/Subcaves | Discovered exit to Materials (range 8) 2437 | -10/Subcaves | A swath of the cavern ceiling suddenly collapsed 2499 | -10/Subcaves | A swath of the cavern ceiling suddenly collapsed 3145 | -10/Subcaves | Shifting Twisted Machinery released Enh. Flamer 3205 | -10/Subcaves | Shifting Twisted Machinery released Flamer 3345 | -10/Subcaves | Visited 4L-MR0's lab 3361 | -10/Subcaves | Found Powered Cannon 3362 | -10/Subcaves | Attached Powered Cannon, gained temporary slot: Power 3588 | -10/Subcaves | Shifting Twisted Machinery released Sub. Laser 3592 | -10/Subcaves | Shifting Twisted Machinery released Sub. Power Source 4059 | -10/Subcaves | Entered Recycling 4061 | -8/Recycling | Reached level 4 4063 | -8/Recycling | Upgraded with Utility slot (x1) 4491 | -8/Recycling | Learned location of 1 exit from Lower Caves 4523 | -8/Recycling | Learned Factory trap positions 4532 | -8/Recycling | Discovered new exit (range 8) 4560 | -8/Recycling | Learned location of 3 exits from Factory 4564 | -8/Recycling | Learned location of 1 exit from Storage 4580 | -8/Recycling | Learned 2 Lower Caves zone layouts 4604 | -8/Recycling | Learned 4 Lower Caves zone layouts 4813 | -8/Recycling | Scanned before Scraplab entrance 4816 | -8/Recycling | Angered Scraplab inhabitants 4903 | -8/Recycling | Found Prototype Device 4903 | -8/Recycling | Identified Scrap Engine 5770 | -8/Recycling | Entered Factory 5771 | -6/Factory | Identified exit to Factory 5772 | -6/Factory | Loaded intel: 122 trap records 5772 | -6/Factory | Reached level 5 5905 | -6/Factory | Discovered new exit (range 15) 6174 | -6/Factory | Build established: Skirmisher 6744 | -6/Factory | Core integrity fell below 50% 7177 | -6/Factory | Reached level 6 7179 | -6/Factory | Upgraded with Utility slot (x1) 7420 | -6/Factory | Discovered new exit (range 5) 7589 | -6/Factory | Identified exit to Lower Caves 7599 | -6/Factory | Entered Lower Caves 7600 | -6/Lower Caves | Identified exit to Lower Caves 7602 | -6/Lower Caves | Attracted the attention of an 0b10 checkpoint 8155 | -6/Lower Caves | Found DCF Scrap (14 items) 9292 | -6/Lower Caves | Spotted B-75 Beast 9740 | -6/Lower Caves | Entered another Lower Caves area 9742 | -6/Lower Caves | Reached level 7 9753 | -6/Lower Caves | Upgraded with Propulsion slot (x1) 9855 | -6/Lower Caves | Spotted B-75 Beast 9901 | -6/Lower Caves | Destroyed B-75 Beast 10184 | -6/Lower Caves | Discovered exit to Factory (range 14) 10215 | -6/Lower Caves | Ambushed by research squad 10217 | -6/Lower Caves | Core integrity fell below 20% 10424 | -6/Lower Caves | Encountered a Warlord checkpoint 11051 | -6/Lower Caves | Discovered new exit (range 15) 11066 | -6/Lower Caves | Identified exit to Zion 11355 | -6/Lower Caves | Entered Zion 11434 | -6/Zion | Learned location of 1 exit from Factory 11437 | -6/Zion | Found Prototype Device 11437 | -6/Zion | Identified Mobile Refinery Mk. CCLXVII 11503 | -6/Zion | Received a hallucinogenic algorithm 11567 | -6/Zion | Discovered new exit (range 16) 11574 | -6/Zion | Learned 8 Factory zone layouts 11639 | -6/Zion | System corruption cleaned by Quarantine Array 11643 | -6/Zion | Attacked by Zionites 11643 | -6/Zion | Spotted YJ-AV2(B) 11643 | -6/Zion | Spotted BU-5S6(B) 11672 | -6/Zion | Identified exit to Proximity Caves 11673 | -6/Zion | Entered Proximity Caves 11675 | -5/Proximity Caves | Reached level 8 11675 | -5/Proximity Caves | Upgraded with Utility slot (x1) 12221 | -5/Proximity Caves | Spotted B-75 Beast 12245 | -5/Proximity Caves | Learned Factory garrison access intel 12258 | -5/Proximity Caves | Attracted the attention of an 0b10 outpost 12696 | -5/Proximity Caves | Reached level 9 12813 | -5/Proximity Caves | Discovered exit to Factory (range 11) 13078 | -5/Proximity Caves | Attracted the attention of an 0b10 checkpoint 13171 | -5/Proximity Caves | Entered Factory 13172 | -5/Factory | Identified exit to Upper Caves 13173 | -5/Factory | Identified exit to Extension 13173 | -5/Factory | Reached level 10 13174 | -5/Factory | Loaded intel: 4 garrison access locations 13499 | -5/Factory | Build established: Hacker-Skirmisher 13678 | -5/Factory | Fabricated Nuclear Core (x2) 13766 | -5/Factory | Sucked down chute 13766 | -5/Factory | Entered Waste 13767 | -5/Waste | Joined by Warlord forces that had cleared the area 13903 | -5/Waste | Found Prototype Device 13903 | -5/Waste | Identified Exp. Shield Generator 14370 | -5/Waste | Discovered new exit (range 16) 14470 | -5/Waste | Found Prototype Device 14470 | -5/Waste | Identified Adv. Particle Accelerator 14601 | -5/Waste | Identified exit to Factory 14630 | -5/Waste | Entered Factory 14630 | -5/Factory | Accompanied by 20 allies 15023 | -5/Factory | Garrison activated, responded to threat 15078 | -5/Factory | Reached level 11 15101 | -5/Factory | Reached level 12 15129 | -5/Factory | Garrison activated, responded to threat 15135 | -5/Factory | Lost 3 allies 15137 | -5/Factory | Reached level 13 15138 | -5/Factory | Upgraded with Utility slot (x1) 15220 | -5/Factory | Lost 3 allies 15302 | -5/Factory | Discovered new exit (range 11) 15324 | -5/Factory | Reached level 14 15436 | -5/Factory | Identified exit to Factory 15506 | -5/Factory | Discovered exit to Factory (range 12) 15530 | -5/Factory | First assault squad dispatched 15540 | -5/Factory | Reached level 15 15555 | -5/Factory | Reached level 16 15556 | -5/Factory | Upgraded with Utility slot (x1) 15615 | -5/Factory | Reached level 17 15860 | -5/Factory | Reached level 18 16230 | -5/Factory | Lost 6 allies 16280 | -5/Factory | Found Prototype Device 16280 | -5/Factory | Identified Active Sensor Suite 16398 | -5/Factory | Core integrity fell below 50% 16399 | -5/Factory | Reached level 19 16415 | -5/Factory | Upgraded with Utility slot (x1) 16421 | -5/Factory | Destroyed 7 combat bots 16619 | -5/Factory | High security lockdown imminent 16699 | -5/Factory | High security lockdown engaged 16760 | -5/Factory | Reached level 20 16762 | -5/Factory | Upgraded with Power slot (x1) 16840 | -5/Factory | Build established: Scavenger-Skirmisher 17142 | -5/Factory | System corruption reached 10% 17157 | -5/Factory | Core integrity fell below 20% 17161 | -5/Factory | Reached level 21 17197 | -5/Factory | Destroyed by P-70 Sage with Tesla Rifle Last Messages --------------- 17189_ C-45 Heavy ARC bursts open, deploying its payload. 17189_ G-67 Veteran unfolds itself. 17189_ L-41 Fighter unfolds itself. 17189_ G-50 Soldier unfolds itself. 17189_ I-47 Archangel unfolds itself. 17189_ Slug penetrates Fabricator. 17190_ I-47 Archangel distress signal jammed. 17191_ Destroyed Mic. Fission Core. 17191_ Slug penetrates Fabricator. 17192_ I-47 Archangel distress signal jammed. 17193_ Slug penetrates Fabricator. 17193_ Phase Shifter destroyed. 17193_ System corrupted: Powered Cannon failed to cycle. 17193_ I-47 Archangel distress signal jammed. 17194_ Slug penetrates Fabricator. 17195_ I-47 Archangel distress signal jammed. 17196_ Slug penetrates Fabricator. 17196_ Destroyed Antigrav System. 17196_ Destroyed Hpw. Shock Rifle. 17197_ I-47 Archangel distress signal jammed. Map ----- +----------------------------------------------------+ | # ### """" "" # # ??????????? | | # ### """" """" # # #?????????? | | ## ### """" """"% ### #?????????? | | ## ### """" " "" ### #?????????? | | ## ### % % ### #?????????? | | ## ### !### ????????? | | ## ###! ! ### ????????? | | ## ### % ### ????????? | | ## #######!#+######## ###### #####???????? | | ## ##### %%% #### # =! # # ??????? | | %% % #### "= [ + + ??????? | | ^!== ! !!! #### # %[|# # ???????? | | ^= ! #### #"[%[# # ??????? | | ^ #### #[% # # ??????? | | ^ #### #!% # ######??????? | | #### !*###### #####???????? | | ^ #### %%##;### ???????? | | ######## ###;%!%/ %" " ???????? | | ########## ######! = "%" ???????? | | ########## m%= " #####??????? | | ########## "%l g ####???????? | | ########## "%" gh #####/?????? | | ? ?? # ########g#i################ ??????? | | " " """# ## hhi=############### ??????? | | " ? R?# ## """ """pp############### ?????? | | "?" ?""# ## """ ""[@=%############## ?????? | | ?"???????# ## """ ""[!*%%[![ ## ?????? | | ???????? + ## h!![!!====""" """ ## ?????? | | ?????????# ############%%!%[""" """ ##? ????? | | ?????????? # ##!#*[= """ """w#? ?????? | | ?????????? # ####=| ## ?????? | | ??????????? # """" #### m""" """ ## ?????? | | ??????????? # """" #### """ """ ## ?????? | | ??????????? # """" #### """ """ ## ?????? | | ??????????? # """" #### ! ## ?????? | | ????????????? # """" #### ##???????? | | ?????????????? # """" #### p = ?#???????? | | ?????????????? # ##?# ? ##???????? | | ???????????????#####+#############+####??????????? | | ???????????????? """ ?????????? | | ???????????????? ?Y" ?????????? | | ?????????????????? ? ???????????? | | ??????????????????? ? ? ? ???????????? | | ????????????????????? ??????????????? | | ???????????????????????###?+??####???????????????? | | ???????????????????????????? ????????????????????? | | ?????????????????????????????????????????????????? | | ????????????????????????????????????????????????? | | ?????????????????????????????????????????????????? | | ???????????????????????????????????????????????? | +----------------------------------------------------+ Best States ------------- Heat Dissipation 110 Energy Generation 60 Energy Capacity 731 Matter Stores 300 Matter Capacity 300 Sight Range 17 Robot Scan Range 48 Terrain Scan Range 16 Terrain Scan Density 610 Jamming Range 14 Power Amplification 20 Point Defense Rating 80 Phase Shifting 5 Evasion (%) 45 Targeting Accuracy 16 Recoil Reduction 3 Matter Filtering 50 Particle Charging 50 Offensive Hacking 21 Defensive Hacking 11 Item Schematics ----------------- Nuclear Core | -8/Recycling | Hacked Remote Datajack | -8/Recycling | Hacked Robot Schematics ------------------ None Fabricated ------------ Nuclear Core | x2 | -5/Factory Repaired ---------- Nothing Studied --------- Arm. Wheel | -5/Factory | Hacked Mic. Nuclear Core | -5/Factory | Hacked Lgt. Fission Core | -5/Factory | Hacked Alien Tech Used ----------------- None Achievements -------------- Cannon Specialist Hard Hitter Hot Stuff Not So Scrappy Overkill Scrappetite Some Acronyms Are Better Than Others Total Silence Challenges ------------ None RPGLIKE | -11 -10 -10 -8 -6 -6 -6 -6 -5 -5 -5 -5 --------- Run | Yrd Mat Sub Rec Fac Low Low Zio Pro Fac Was Fac Levels Raised 20 | . 1 1 1 2 . 1 . 2 1 . 11 XP Earned 33193 | 3000 2070 1500 1320 3025 950 950 500 2100 1500 200 16078 XP Spent 32995 | 2990 1400 1550 1400 3155 . 995 . 3460 1370 . 16675 Upgrades 83 | 11 4 5 1 9 . 3 . 9 5 . 36 Power Slot 2 | . . 1 . . . . . . . . 1 Propulsion Slot 2 | 1 . . . . . 1 . . . . . Utility Slot 9 | 2 1 . 1 1 . . . 1 . . 3 Weapon Slot 1 | 1 . . . . . . . . . . . Core Integrity 21 | . . . . . . 1 . 3 . . 17 Heat Dissipation 9 | 2 . 2 . 2 . 1 . . . . 2 Energy Generation 2 | . . 2 . . . . . . . . . Energy Storage 3 | . . . . 2 . . . . . . 1 Mass Support 1 | . . . . . . . . . . . 1 Inventory Capacity 3 | 1 . . . . . . . . . . 2 Sight Range 1 | . . . . . . . . 1 . . . Sensor Range 14 | 1 3 . . 4 . . . 2 . . 4 Terrain Scan Density 6 | 3 . . . . . . . . 1 . 2 Ranged Accuracy 4 | . . . . . . . . . 1 . 3 Hack Attack % 2 | . . . . . . . . . 2 . . Hack Defense % 1 | . . . . . . . . . 1 . . TH Damage % 2 | . . . . . . . . 2 . . . Protomatter Created 2022 | . 188 172 45 111 76 50 . 232 . 193 955 Integrity Restored 4687 | . 464 503 135 333 228 150 . 543 . 571 1760 Core 3928 | . 421 413 135 333 228 150 . 543 . 386 1319 Parts 759 | . 43 90 . . . . . . . 185 441 Protomatter Decayed 866 | . 29 . . . . . . 9 . 83 745 Game ------ Seed JunkRemoteProcessor Manual? 0 Play Time 03:40:50 Cumulative 72.0 hours Start 2025.11.17 @ 21:22:38 End 2025.11.18 @ 00:15:02 Sessions 1 Manual Loads 0 Difficulty Rogue Special Mode Winter2019/RPGLIKE Game No. 68 Rogue 68 Adventurer 0 Explorer 0 Win Type - Total 0 Types 0/0/0/0/0/0/0/0/0/0 Lore% 57 Gallery% 37 Achievement% 35 Wizard Run 0 Options --------- Layout 0 ASCII 0 Keyboard 0 Movement Mouse Keybinds 0 Fullscreen 2 Font 24/Smallcaps Map View 76x50 Zoom Use 0% Tactical HUD 1 Map Filters NONE Filters NONE Steam 1 RUN: 994212eb-e81d-4d3b-946a-9ddb16116d13